Cogmind - Beta 12 @@@ ROGUE MODE // 2023.05.12 @ 10:36:55 Player: Mr Goldstein Result: Destroyed by G-50 Soldier with Heavy Laser Performance ------------- Evolutions (4) 2000 Regions Visited (7) 1400 Robots Destroyed (0) 0 Value Destroyed (20) 20 Prototype IDs (5) 100 Alien Tech Used (0) 0 Bonus (1825) 1825 TOTAL SCORE: 5345 Bonus ------- Pacifist 1325 Entered DSFs 500 Cogmind --------- Core Integrity 0/850 Matter 300/300 Energy 99/100 System Corruption 14% Temperature Cool (9) Movement Core (50) Location -6/Extension Parts ------- > --- POWER (1) -------- (None) > --- PROPULSION (7) --- (None) > --- UTILITY (5) ------ Experimental Targeting Computer Experimental Core Analyzer > --- WEAPON (2) ------- (None) > --- INVENTORY (5) ---- Light Angular Momentum Engine Hacking Suite Authchip [Propulsion] Authchip [Device] Peak State ------------ > --- POWER ------------ Light Angular Momentum Engine > --- PROPULSION ------- Flight Unit Flight Unit Flight Unit VTOL Module Improved Flight Unit Cesium-ion Thruster Nuclear Pulse Thruster > --- UTILITY ---------- Experimental Heat Sink Experimental Targeting Computer Experimental Core Analyzer Hacking Suite System Shield > --- WEAPON ----------- Helical Railgun Powered Hammer > --- INVENTORY -------- Micro Nuclear Core Light Angular Momentum Engine Hacking Suite Authchip [Propulsion] Authchip [Device] [Rating: 65] Favorites ----------- Power Light Angular Momentum Engine Engine Light Angular Momentum Engine Power Core Nuclear Core Propulsion Flight Unit Treads Light Treads Flight Unit Flight Unit Utility Experimental Core Analyzer Device Experimental Heat Sink Processor Experimental Core Analyzer Hackware System Shield Weapon Powered Hammer Ballistic Gun Helical Railgun Impact Weapon Powered Hammer Slashing Weapon Carbide Saw Build | -11 -10 -9 -8 -7 -7 -6 -6 ------- Run | Jun Mat Mat Mat Fac DSF Fac Ext Slots Evolved 8 | . . 2 2 2 . 2 . Power . | . . . . . . . . Propulsion 5 | . . 2 1 1 . 1 . Utility 3 | . . . 1 1 . 1 . Weapon . | . . . . . . . . Parts Attached 22 | 2 . . 1 6 8 3 2 Power 3 | . . . . 1 1 . 1 Engine 1 | . . . . . 1 . . Core 2 | . . . . 1 . . 1 Reactor . | . . . . . . . . Propulsion 10 | 2 . . 1 4 2 1 . Treads 2 | 2 . . . . . . . Leg . | . . . . . . . . Wheel . | . . . . . . . . Hover . | . . . . . . . . Flight 8 | . . . 1 4 2 1 . Utility 6 | . . . . . 4 2 . Device 1 | . . . . . 1 . . Storage . | . . . . . . . . Processor 2 | . . . . . 2 . . Hackware 3 | . . . . . 1 2 . Protection . | . . . . . . . . Artifact . | . . . . . . . . Weapon 3 | . . . . 1 1 . 1 Energy Gun . | . . . . . . . . Energy Cannon . | . . . . . . . . Ballistic Gun 1 | . . . . . 1 . . Ballistic Cannon . | . . . . . . . . Launcher . | . . . . . . . . Special Weapon . | . . . . . . . . Impact Weapon 1 | . . . . 1 . . . Slashing Weapon 1 | . . . . . . . 1 Piercing Weapon . | . . . . . . . . Special Melee Weapon . | . . . . . . . . Unidentified Prototypes 5 | . . . 1 . 4 . . Parts Lost 14 | . . . 2 . . 5 7 Power . | . . . . . . . . Propulsion 9 | . . . 2 . . 4 3 Utility 3 | . . . . . . 1 2 Weapon 2 | . . . . . . . 2 Highest Loss Streak 5 | . . . 2 . . 5 3 To Critical Strikes . | . . . . . . . . Average Slot Usage (%) 53 | . 28 22 12 41 82 81 35 Engine 1 | . . . . . 2 4 . Core 1 | . . . . 7 4 . . Treads 4 | . 28 22 12 . . . . Flight 19 | . . . . 30 39 35 5 Device 3 | . . . . . 5 6 3 Processor 9 | . . . . . 13 13 13 Hackware 4 | . . . . . . 7 5 Ballistic Gun 3 | . . . . . 6 6 1 Impact Weapon 3 | . . . . 2 7 6 3 Naked Turns 12 | . . . 12 . . . . Heaviest Build 18 | . . . . 10 18 18 9 Greatest Support 40 | 40 3 3 3 17 26 32 14 Greatest Overweight (x) 1 | . . . . . . 1 . Average Overweight (x) . | . . . . . . . . Largest Inventory Capacity 5 | 5 5 5 5 5 5 5 5 Average Capacity 5 | 5 5 5 5 5 5 5 5 Most Carried 5 | . . 4 5 4 5 5 5 Average Carried 3 | . . 2 4 1 3 5 4 Final Capacity 5 | 5 5 5 5 5 5 5 5 Final Carried 5 | . . 4 5 2 5 5 4 Class Distribution -------------------- 47% | Scavenger-Sprinter 42% | Mutant 7% | Sprinter Dominant Class ---------------- Mutant | -10/Materials Mutant | -9/Materials Mutant | -8/Materials Sprinter | -7/Factory Scavenger-Sprinter | -7/DSF Scavenger-Sprinter | -6/Factory Mutant | -6/Extension Resources | -11 -10 -9 -8 -7 -7 -6 -6 ----------- Run | Jun Mat Mat Mat Fac DSF Fac Ext Matter Collected 364 | 156 . 21 4 67 100 5 11 Remotely . | . . . . . . . . Salvage Created . | . . . . . . . . Parts . | . . . . . . . . Haulers Intercepted . | . . . . . . . . Recyclers Shooed . | . . . . . . . . Parts Field Recycled . | . . . . . . . . Retrieved Matter . | . . . . . . . . Parts Self-Destructed . | . . . . . . . . Prevented . | . . . . . . . . Kills | -11 -10 -9 -8 -7 -7 -6 -6 ------- Run | Jun Mat Mat Mat Fac DSF Fac Ext Combat Hostiles Destroyed . | . . . . . . . . Classes Destroyed . | . . . . . . . . Best Kill Streak . | . . . . . . . . Combat Bots Only . | . . . . . . . . Max Kills in Single Turn . | . . . . . . . . Gunslinging . | . . . . . . . . Exploded . | . . . . . . . . Melee . | . . . . . . . . Uniques/NPCs Destroyed . | . . . . . . . . Combat | -11 -10 -9 -8 -7 -7 -6 -6 -------- Run | Jun Mat Mat Mat Fac DSF Fac Ext Damage Taken 2460 | . 83 164 523 . . 699 991 Core 1345 | . 32 31 423 . . 206 653 Absorbed by Shields 27 | . . . . . . . 27 Core Remaining (%) 80 | 100 87 92 23 . 100 . . Volleys Fired . | . . . . . . . . Largest . | . . . . . . . . Hottest . | . . . . . . . . Shots Fired . | . . . . . . . . Gun . | . . . . . . . . Cannon . | . . . . . . . . Launcher . | . . . . . . . . Special . | . . . . . . . . Kinetic . | . . . . . . . . Thermal . | . . . . . . . . Explosive . | . . . . . . . . Electromagnetic . | . . . . . . . . Robot Hit Streak . | . . . . . . . . Robot Miss Streak . | . . . . . . . . Penetration Max . | . . . . . . . . Secondary Targets . | . . . . . . . . Shots Hit Robots 5 | . . . . . . 5 . Core Hits 1 | . . . 1 . . . . Critical Kills . | . . . . . . . . Critical Parts Destroyed 1 | . . . . . . 1 . Critical Strikes 1 | . . . . . . 1 . Smash 1 | . . . . . . 1 . Melee Attacks 28 | . . . . 1 . 26 1 Impact 27 | . . . . 1 . 26 . Slashing 1 | . . . . . . . 1 Piercing . | . . . . . . . . Sneak Attacks . | . . . . . . . . Combat Hostiles . | . . . . . . . . Follow-up Attacks . | . . . . . . . . Damage Inflicted 219 | . 6 . 2 . . 197 14 Guns . | . . . . . . . . Cannons . | . . . . . . . . Explosions . | . . . . . . . . Melee 197 | . . . . . . 197 . Ramming 22 | . 6 . 2 . . . 14 Kinetic . | . . . . . . . . Thermal . | . . . . . . . . Explosive . | . . . . . . . . Electromagnetic . | . . . . . . . . Impact 197 | . . . . . . 197 . Slashing . | . . . . . . . . Piercing . | . . . . . . . . Highest Corruption 14 | . . . . . . 14 14 Average Corruption 11 | . . . . . . 7 14 Corruption Purged . | . . . . . . . . Corruption Blocked . | . . . . . . . . Effects 21 | . . . . . . 10 11 Message Errors 5 | . . . . . . 2 3 Matter Fused 3 | . . . . . . 2 1 Heat Flow Errors 2 | . . . . . . 1 1 Parts Fused 1 | . . . . . . . 1 Data Loss (minor) 3 | . . . . . . 2 1 Data Loss (major) 1 | . . . . . . 1 . Misdirections 6 | . . . . . . 2 4 Overload Shots . | . . . . . . . . Overflow Damage 79 | . . . . . . 79 . Projectiles . | . . . . . . . . Explosions . | . . . . . . . . Melee 79 | . . . . . . 79 . Knockbacks 1 | . . . . . . 1 . Impact 1 | . . . . . . 1 . Kinetic . | . . . . . . . . Secondary . | . . . . . . . . Self-Inflicted Damage 11 | . 3 . 1 . . . 7 Shots . | . . . . . . . . Rammed 8 | . 3 . 1 . . . 4 Targets Rammed 8 | . 3 . 1 . . . 4 Kicked . | . . . . . . . . Crushed . | . . . . . . . . Highest Temperature 128 | . . . . . 3 83 128 Average Temperature 44 | . . . . . 3 49 72 Received Heat Transfer 474 | . . 45 54 . . 36 339 Siege Activations . | . . . . . . . . Robots Corrupted . | . . . . . . . . Combat Hostiles . | . . . . . . . . Parts Fried . | . . . . . . . . Impact Corruptions 3 | . . . . . . 3 . Robots Melted . | . . . . . . . . Combat Hostiles . | . . . . . . . . Parts Melted . | . . . . . . . . Heat Transferred . | . . . . . . . . Parts Sabotaged . | . . . . . . . . Parts Stolen . | . . . . . . . . Parts Stripped . | . . . . . . . . Power Chain Reactions . | . . . . . . . . Missiles Intercepted . | . . . . . . . . Alert | -11 -10 -9 -8 -7 -7 -6 -6 ------- Run | Jun Mat Mat Mat Fac DSF Fac Ext Peak Influence 286 | . 30 57 34 16 11 206 286 Initial 100 | . . 12 24 15 11 5 100 Average 85 | . 15 23 23 15 11 108 153 Maximum Alert Level 1 | . . . . . . 1 1 Low Security (%) 89 | 100 100 100 100 100 100 97 64 Level 1 10 | . . . . . . 2 35 Level 2 . | . . . . . . . . Level 3 . | . . . . . . . . Level 4 . | . . . . . . . . Level 5 . | . . . . . . . . High Security . | . . . . . . . . Max Security . | . . . . . . . . Sterilizations 1 | . . . . . 1 . . Squads Dispatched 8 | . . . 1 . . 4 3 Investigation 6 | . . . 1 . . 3 2 Extermination . | . . . . . . . . Reinforcement 2 | . . . . . . 1 1 Assault . | . . . . . . . . Garrison . | . . . . . . . . Intercept . | . . . . . . . . Searches Triggered . | . . . . . . . . Construction Impeded . | . . . . . . . . Haulers Reinforced . | . . . . . . . . Active Scanning Responses . | . . . . . . . . Cargo Convoy Interrupts . | . . . . . . . . Stealth | -11 -10 -9 -8 -7 -7 -6 -6 --------- Run | Jun Mat Mat Mat Fac DSF Fac Ext Distress Signals 2 | . . . . . . 1 1 Communications Jammed . | . . . . . . . . Distress Signals . | . . . . . . . . Times Spotted 57 | . 5 4 12 . 2 14 20 Peak Tracking Total 12 | . 5 4 12 . 3 7 9 Tactical Retreats 12 | . . . 1 . . 5 6 Traps | -11 -10 -9 -8 -7 -7 -6 -6 ------- Run | Jun Mat Mat Mat Fac DSF Fac Ext Traps Triggered 7 | . . . 1 . 3 . 3 Indirectly . | . . . . . . . . Trap Hack Attempts . | . . . . . . . . Triggered . | . . . . . . . . Disarmed . | . . . . . . . . Reprogrammed . | . . . . . . . . Reused . | . . . . . . . . Traps Extracted . | . . . . . . . . Installed . | . . . . . . . . Triggered . | . . . . . . . . Machines | -11 -10 -9 -8 -7 -7 -6 -6 ---------- Run | Jun Mat Mat Mat Fac DSF Fac Ext Machines Disabled 2 | . . . . . . 2 . Max in Single Turn 1 | . . . . . . 1 . Machines Repaired . | . . . . . . . . Machines Sabotaged . | . . . . . . . . Overloaded Fab Kills . | . . . . . . . . Hacking | -11 -10 -9 -8 -7 -7 -6 -6 --------- Run | Jun Mat Mat Mat Fac DSF Fac Ext Machines Accessed 15 | . . . . 1 . 7 7 Terminals 12 | . . . . 1 . 4 7 Fabricators 2 | . . . . . . 2 . Repair Stations . | . . . . . . . . Recycling Units . | . . . . . . . . Scanalyzers 1 | . . . . . . 1 . Garrison Access . | . . . . . . . . Total Hacks 30 | . . . . 2 . 15 13 Successful 13 | . . . . 1 . 7 5 Failed 17 | . . . . 1 . 8 8 Catastrophic 8 | . . . . . . 5 3 Database Lockouts . | . . . . . . . . Manual 6 | . . . . . . 6 . Terminals 23 | . . . . 2 . 8 13 Fabricators 3 | . . . . . . 3 . Repair Stations . | . . . . . . . . Recycling Units . | . . . . . . . . Scanalyzers 4 | . . . . . . 4 . Garrison Access . | . . . . . . . . Terminal Hacks 7 | . . . . 1 . 1 5 Open Door 4 | . . . . . . . 4 Open DSF 1 | . . . . 1 . . . Branch Access Points 2 | . . . . . . 1 1 Fabricator Hacks 2 | . . . . . . 2 . Load Schematic 1 | . . . . . . 1 . Build 1 | . . . . . . 1 . Repair Station Hacks . | . . . . . . . . Recycling Unit Hacks . | . . . . . . . . Scanalyzer 2 | . . . . . . 2 . Insert Component 1 | . . . . . . 1 . Analyze 1 | . . . . . . 1 . Garrison Access Hacks . | . . . . . . . . Unauthorized Hacks 2 | . . . . . . 2 . Terminals 2 | . . . . . . 2 . Assimilate 1 | . . . . . . 1 . Botnet 1 | . . . . . . 1 . Fabricators . | . . . . . . . . Repair Stations . | . . . . . . . . Recycling Units . | . . . . . . . . Scanalyzers . | . . . . . . . . Garrison Access . | . . . . . . . . Data Cores Recovered . | . . . . . . . . Used . | . . . . . . . . Hacking Detections 9 | . . . . . . 6 3 Full Trace Events 5 | . . . . . . 3 2 Feedback Events 1 | . . . . . . 1 . Corruption 1 | . . . . . . 1 . Feedback Blocked . | . . . . . . . . Robot Schematics Acquired . | . . . . . . . . Robots Built . | . . . . . . . . Authchips . | . . . . . . . . Time . | . . . . . . . . Total Robot Build Rating . | . . . . . . . . Part Schematics Acquired 1 | . . . . . . 1 . Parts Built 1 | . . . . . . 1 . Authchips 1 | . . . . . . 1 . Time 24 | . . . . . . 24 . Total Part Build Rating 3 | . . . . . . 3 . Parts Repaired . | . . . . . . . . Time . | . . . . . . . . Parts Recycled . | . . . . . . . . Recycled Matter . | . . . . . . . . Retrieved Matter . | . . . . . . . . Retrieved Components . | . . . . . . . . Parts Scanalyzed 1 | . . . . . . 1 . Part Schematics Acquired 1 | . . . . . . 1 . Parts Damaged . | . . . . . . . . Bothacking | -11 -10 -9 -8 -7 -7 -6 -6 ------------ Run | Jun Mat Mat Mat Fac DSF Fac Ext Used RIF Installer . | . . . . . . . . Robots Hacked . | . . . . . . . . Non-combat . | . . . . . . . . Combat . | . . . . . . . . Robot Hacks Applied . | . . . . . . . . Relay Couplers Released . | . . . . . . . . Fabnet Peak Effective % . | . . . . . . . . Robots Rewired . | . . . . . . . . Allies Hacked . | . . . . . . . . Hacks Repelled . | . . . . . . . . Allies | -11 -10 -9 -8 -7 -7 -6 -6 -------- Run | Jun Mat Mat Mat Fac DSF Fac Ext Total Allies 4 | . . . . . . . 4 Largest Group 3 | . . . . . . . 3 Highest-Rated Group 159 | . . . . . . . 159 Highest-Rated Ally 159 | . . . . . . . 159 Total Orders . | . . . . . . . . Ally Attacks 15 | . . . . . . . 15 Total Damage 332 | . . . . . . . 332 Kills . | . . . . . . . . Allies Corrupted . | . . . . . . . . Allies Melted . | . . . . . . . . Intel | -11 -10 -9 -8 -7 -7 -6 -6 ------- Run | Jun Mat Mat Mat Fac DSF Fac Ext Robot Analysis Total . | . . . . . . . . Derelict Logs Recovered . | . . . . . . . . Drone Launches . | . . . . . . . . Drone Recoveries . | . . . . . . . . Exploration | -11 -10 -9 -8 -7 -7 -6 -6 ------------- Run | Jun Mat Mat Mat Fac DSF Fac Ext Turns Passed 909 | 23 51 61 64 58 96 304 252 Spaces Moved 1881 | 27 96 113 121 149 155 799 421 Core 644 | 21 96 113 121 . . . 293 Treads 6 | 6 . . . . . . . Legs . | . . . . . . . . Wheels . | . . . . . . . . Hover . | . . . . . . . . Flight 1231 | . . . . 149 155 799 128 Fastest Speed 20 | 50 50 50 50 31 23 20 30 Average Speed 34 | 74 50 50 50 31 25 24 45 Slowest Speed 160 | 160 50 50 50 31 31 106 50 Overloaded Moves . | . . . . . . . . Propulsion Burnouts . | . . . . . . . . Robots Hopped 45 | . . . . 5 2 17 21 Cave-ins Triggered 2 | . . . . . . 2 . Exploration Rate (%) 34 | 4 37 20 27 5 97 23 65 Regions Visited 7 Branch Regions 1 Pre-discovered Areas . | . . . . . . . . Known Exits Taken 2 | . . . . 1 . 1 . Unknown Exits Taken 4 | 1 1 1 1 . . . . Scrap Searched . | . . . . . . . . Spaces Dug 12 | . . . . 1 . 11 . Terrain Destroyed 12 | . . . . 1 . 11 . Melee 12 | . . . . 1 . 11 . Projectile . | . . . . . . . . AOE . | . . . . . . . . Terrain Rammed . | . . . . . . . . Walls Destroyed . | . . . . . . . . Machines Disabled . | . . . . . . . . Actions | -11 -10 -9 -8 -7 -7 -6 -6 --------- Run | Jun Mat Mat Mat Fac DSF Fac Ext Total 2028 | 28 98 116 123 153 205 845 460 Wait 34 | . . . . . . 34 . Move 1794 | 26 95 112 120 139 150 765 387 Hop 35 | . . . . 4 2 16 13 Pick Up 10 | . . 4 . 3 3 . . Fast Attach 15 | 2 . . 1 . 8 3 1 Attach 7 | . . . . 6 . . 1 Detach 1 | . . . 1 . . . . Swap . | . . . . . . . . Drop 4 | . . . . . 1 1 2 Fire . | . . . . . . . . Melee 28 | . . . . 1 . 26 1 Ram 8 | . 3 . 1 . . . 4 Kick . | . . . . . . . . Crush . | . . . . . . . . Escape Stasis 92 | . . . . . 41 . 51 Rewire . | . . . . . . . . Trap . | . . . . . . . . Miscellaneous . | . . . . . . . . Route ------- -11/Junkyard -10/Materials -9/Materials (discovered 2 exits: [*Mat] / [*Sto]) -8/Materials -7/Factory -7/DSF -6/Factory (discovered 5 exits: [*Fac] / *Low x2 / *Ext x2) -6/Extension (discovered 1 exit: Cet) History --------- Turn | Location | Event 3 | -11/Junkyard | Discovered new exit (range 16) 24 | -11/Junkyard | Entered Materials 72 | -10/Materials | Discovered new exit (range 7) 75 | -10/Materials | Entered another Materials area 75 | -9/Materials | Evolved 2 slots: Propulsion x2 129 | -9/Materials | Discovered new exit (range 9) 133 | -9/Materials | Discovered new exit (range 7) 136 | -9/Materials | Entered another Materials area 136 | -8/Materials | Evolved 2 slots: Propulsion x1, Utility x1 191 | -8/Materials | Core integrity fell below 50% 192 | -8/Materials | Discovered new exit (range 16) 200 | -8/Materials | Entered Factory 200 | -7/Factory | Evolved 2 slots: Propulsion x1, Utility x1 258 | -7/Factory | Identified exit to DSF 258 | -7/Factory | Entered DSF 258 | -7/DSF | Encountered a pitched battle between 0b10 and Warlord forces 258 | -7/DSF | Spotted Executioner 264 | -7/DSF | Found Prototype Processor 264 | -7/DSF | Identified Exp. Core Analyzer 268 | -7/DSF | Found Prototype Processor 268 | -7/DSF | Identified Exp. Targeting Computer 289 | -7/DSF | Sterilization system engaged 309 | -7/DSF | Ambient heat levels rising (+10) 318 | -7/DSF | Discovered new exit (range 16) 324 | -7/DSF | Ambient heat levels rising (+10) 339 | -7/DSF | Ambient heat levels rising (+10) 354 | -7/DSF | Ambient heat levels rising (+10) 354 | -7/DSF | Entered Factory 354 | -6/Factory | Evolved 2 slots: Propulsion x1, Utility x1 409 | -6/Factory | Fabricated Hacking Suite (x1) 434 | -6/Factory | Spotted B-75 Beast 441 | -6/Factory | Identified exit to Lower Caves 441 | -6/Factory | Identified exit to Extension 491 | -6/Factory | Discovered new exit (range 6) 541 | -6/Factory | Crushed by falling debris 541 | -6/Factory | System corruption reached 10% 591 | -6/Factory | Crushed by falling debris 592 | -6/Factory | Lost 5 parts (4n1u) 658 | -6/Factory | Entered Extension 715 | -6/Extension | Rescued a captive Derelict 718 | -6/Extension | Rescued a captive Derelict 719 | -6/Extension | Rescued a captive Derelict 733 | -6/Extension | Rescued A7 745 | -6/Extension | Core integrity fell below 50% 769 | -6/Extension | Lost 3 parts (3n) 800 | -6/Extension | Spotted B-75 Beast 803 | -6/Extension | Spotted B-75 Beast 813 | -6/Extension | Rescued a captive Derelict 821 | -6/Extension | Identified exit to Cetus 897 | -6/Extension | Core integrity fell below 20% 910 | -6/Extension | Destroyed by G-50 Soldier with Heavy Laser Last Messages --------------- shameful. I was redirecting transmissions on the 0b10 network from within a garrison when a wave of sentries passed through. Nothing I could do but surrender..." 00847_ Connecting with Door Terminal... 00847_ ALERT: Suspicious activity at Terminal E006. Dispatching Investigation squad. 00849_ Slammed into R-10 Processor. 00853_ Connecting with Door Terminal... 00853_ ALERT: Suspicious activity at Terminal E004. Dispatching Investigation squad. 00857_ Acquired Carbide Saw. 00867_ G-50 Soldier springs to life. 00869_ E|SG?? | | ??????????????????????????????????? | | ??????????????????????????????????? | | ??????????????????????????????????? | | ??????????????????????????????????? | | ??????????????????????????????????? | | ??????????????????????????????????? | | ??????????????????????????????????? | | ??????????????????????????????????? | | ??????????????????????????????????? | | ??????????????????????????????????? | | ??????????????????????????????????? | | | | | +----------------------------------------------------+ Best States ------------- Heat Dissipation 63 Energy Generation 18 Energy Capacity 240 Matter Stores 300 Matter Capacity 300 Sight Range 16 Terrain Scan Density 10 Evasion (%) 66 Targeting Accuracy 12 Core Analysis 8 Recoil Reduction 1 Offensive Hacking 10 Defensive Hacking 10 Authchip Count 3 Item Schematics ----------------- Hacking Suite | -6/Factory | Scanalyzed Robot Schematics ------------------ None Fabricated ------------ Hacking Suite | x1 | -6/Factory | Authchip Alien Tech Used ----------------- None Achievements -------------- None Challenges ------------ None Game ------ Seed TractorRestorationGuard Manual? 0 Play Time 00:21:25 Cumulative 200.0 hours Start 2023.05.12 @ 10:18:30 End 2023.05.12 @ 10:36:55 Sessions 1 Manual Loads 0 Difficulty Rogue Special Mode None Game No. 566 Rogue 566 Adventurer 0 Explorer 0 Win Type - Total 9 Types 7/0/1/1/0/0/0/0/0 Lore% 79 Gallery% 77 Achievement% 70 Wizard Run 0 Options --------- ASCII 0 Keyboard 0 Movement Numpad Keybinds 0 Fullscreen 1 Font 16/SmallcapsGlow Map View 75x55 Tactical HUD 1 Map Filters NONE Filters NONE Steam 1 RUN: c0ff48f8-3ed6-43b1-a99a-cd3ac66ee36f